fUSD/lending_fUSD_20250629
["ID","MTS","AMOUNT","RATE_DAILY","PERIOD"]
[368612090,1751236235392,-151.0,0.00018459,2]
[368612092,1751236235402,-151.0,0.00018459,2]
[368612095,1751236235411,-168.0,0.00018479,2]
[368612097,1751236235421,-355.81657,0.00018487,2]
[368612099,1751236235431,-355.81657,0.00018487,2]
[368612101,1751236235441,-151.0,0.00018487,2]
[368612103,1751236235450,-289.242713,0.00018487,2]
[368612105,1751236235460,-289.242713,0.00018487,2]
[368612107,1751236235469,-151.0,0.00018487,2]
[368612109,1751236235479,-151.0,0.00018487,2]
[368612111,1751236235488,-205.941007,0.00018487,2]
[368612113,1751236235497,-151.0,0.00018487,2]
[368612115,1751236235506,-617.582891,0.00018487,2]
[368612117,1751236235515,-617.582897,0.00018487,2]
[368612119,1751236235524,-238.02,0.00018493,2]
[368612121,1751236235533,-171.13,0.00018502,2]
[368612123,1751236235543,-156.8,0.00018514,2]
[368612125,1751236235552,-87.19081581,0.00018532,2]
[368612213,1751236236401,-212.80918419,0.00018532,2]
[368612215,1751236236411,-134.96389749,0.00018532,2]
[368612394,1751236238094,-196.2629546,0.00018532,2]
[368612397,1751236238104,-114.9219384,0.00018533,2]
[368612399,1751236238115,-36.0780616,0.00018533,2]
[368612401,1751236238124,-152.323612,0.00018533,2]
[368612403,1751236238135,-151.0,0.00018533,2]
[368612405,1751236238147,-151.0,0.00018533,2]
[368612407,1751236238156,-151.0,0.00018533,2]
[368612409,1751236238166,-151.0,0.00018533,2]
[368612411,1751236238177,-151.0,0.00018533,2]
[368612413,1751236238188,-207.275299,0.00018533,2]
[368612415,1751236238198,-151.0,0.00018533,2]
[368612417,1751236238207,-151.0,0.00018533,2]
[368612419,1751236238217,-151.0,0.00018533,2]
[368612421,1751236238226,-151.0,0.00018533,2]
[368612423,1751236238236,-151.0,0.00018533,2]
[368612425,1751236238246,-151.0,0.00018533,2]
[368612427,1751236238255,-151.0,0.00018533,2]
[368612429,1751236238264,-151.0,0.00018533,2]
[368612431,1751236238273,-151.0,0.00018533,2]
[368612433,1751236238283,-151.0,0.00018533,2]
[368612435,1751236238292,-1546.44729283,0.0001854,2]
[368612437,1751236238303,-2224.31390383,0.0001854,2]
[368612439,1751236238320,-420.08396197,0.0001854,2]
[368612441,1751236238329,-101.76603803,0.00018554,2]
[368612446,1751236238365,-198.23396197,0.00018554,2]
[368612448,1751236238375,-392.0,0.00018554,2]
[368612450,1751236238385,-151.0,0.00018574,2]
[368612452,1751236238394,-157.16496,0.00018574,2]
[368612454,1751236238404,-151.0,0.00018574,2]
[368612457,1751236238413,-168.0,0.00018574,2]
[368612460,1751236238422,-151.0,0.00018576,2]
[368612463,1751236238431,-1596.44167822,0.00018591,2]
[368612465,1751236238441,-500.0,0.0001862,2]
[368612467,1751236238451,-202.57259368,0.0001862,2]
[368612469,1751236238461,-500.0,0.0001862,2]
[368612471,1751236238470,-502.0,0.0001862,2]
[368612473,1751236238479,-183.20101512,0.0001862,2]
[368612475,1751236238488,-150.0,0.0001862,2]
[368612477,1751236238497,-150.0,0.0001862,2]
[368612479,1751236238507,-150.0,0.0001862,2]
[368612481,1751236238517,-500.0,0.0001862,2]
[368612483,1751236238527,-500.0,0.0001862,2]
[368612485,1751236238536,-150.0,0.0001862,2]
[368612487,1751236238545,-500.0,0.0001862,2]
[368612489,1751236238554,-150.0,0.0001862,2]
[368612492,1751236238564,-528.0,0.0001862,2]
[368612493,1751236238576,-150.0,0.0001862,2]
[368612495,1751236238586,-614.00998495,0.0001862,2]
[368612497,1751236238595,-355.81657,0.0001862,2]
[368612499,1751236238604,-355.81657,0.0001862,2]
[368612502,1751236238614,-151.0,0.0001862,2]
[368612504,1751236238623,-289.242713,0.0001862,2]
[368612506,1751236238633,-289.242713,0.0001862,2]
[368612508,1751236238644,-44.87168689,0.0001862,2]
[368612512,1751236238681,-106.12831311,0.0001862,2]
[368612515,1751236238690,-203.730362,0.0001862,2]
[368612517,1751236238700,-168.0,0.00018627,2]
[368612519,1751236238711,-151.0,0.00018628,2]
[368612521,1751236238720,-151.0,0.00018628,2]
[368612523,1751236238729,-151.0,0.00018628,2]
[368612525,1751236238739,-151.0,0.00018628,2]
[368612526,1751236238748,-355.81657,0.00018628,2]
[368612528,1751236238757,-355.81657,0.00018628,2]
[368612530,1751236238766,-151.0,0.00018628,2]
[368612532,1751236238775,-289.242713,0.00018628,2]
[368612534,1751236238784,-289.242713,0.00018628,2]
[368612536,1751236238793,-151.0,0.00018628,2]
[368612538,1751236238803,-1500.0,0.0001863,2]
[368612541,1751236238813,-151.0,0.00018632,2]
[368612543,1751236238827,-267.60612,0.00018632,2]
[368612544,1751236238836,-151.0,0.00018632,2]
[368612547,1751236238845,-151.0,0.00018632,2]
[368612549,1751236238855,-151.0,0.00018632,2]
[368612551,1751236238864,-188.866234,0.00018632,2]
[368612553,1751236238874,-1680.0,0.00018646,2]
[368612555,1751236238884,-348.0,0.00018711,2]
[368612557,1751236238893,-4190.84515863,0.00018732,2]
[368612559,1751236238902,-976.56,0.00018751,2]
[368612561,1751236238911,-151.0,0.00018757,2]
[368612562,1751236238921,-151.0,0.00018757,2]
[368612564,1751236238930,-151.0,0.00018757,2]
[368612567,1751236238940,-343.944572,0.00018757,2]
[368612568,1751236238950,-343.944572,0.00018757,2]
[368612570,1751236238958,-151.0,0.00018757,2]
[368612572,1751236238968,-151.0,0.00018757,2]
[368612575,1751236238978,-324.772973,0.00018757,2]
[368612577,1751236238988,-324.772973,0.00018757,2]
[368612579,1751236238997,-151.0,0.00018757,2]
[368612581,1751236239007,-300.0,0.0001876,2]
[368612583,1751236239017,-300.0,0.0001876,2]
[368612585,1751236239026,-179.68966691,0.0001876,2]
[368612587,1751236239036,-666.0,0.0001876,2]
[368612588,1751236239046,-300.0,0.0001876,2]
[368612590,1751236239055,-666.0,0.0001876,2]
[368612592,1751236239065,-307.44041539,0.0001876,2]
[368612594,1751236239076,-300.0,0.0001876,2]
[368612596,1751236239086,-207.4,0.00018761,2]
[368612598,1751236239095,-151.0,0.00018761,2]
[368612600,1751236239105,-160.0,0.00018761,2]
[368612602,1751236239114,-668.65185757,0.00018761,2]
[368612604,1751236239124,-300.0,0.00018761,2]
[368612606,1751236239138,-500.0,0.00018761,2]
[368612608,1751236239147,-300.0,0.00018761,2]
[368612611,1751236239156,-500.0,0.00018761,2]
[368612613,1751236239165,-300.0,0.00018761,2]
[368612615,1751236239174,-500.0,0.00018761,2]
[368612616,1751236239183,-500.0,0.00018761,2]
[368612619,1751236239194,-300.0,0.00018761,2]
[368612621,1751236239204,-500.0,0.00018761,2]
[368612623,1751236239213,-500.0,0.00018761,2]
[368612625,1751236239224,-300.0,0.00018761,2]
[368612627,1751236239233,-500.0,0.00018761,2]
[368612629,1751236239243,-500.0,0.00018761,2]
[368612631,1751236239252,-300.0,0.00018761,2]
[368612633,1751236239261,-500.0,0.00018761,2]
[368612635,1751236239271,-500.0,0.00018761,2]
[368612637,1751236239280,-300.0,0.00018761,2]
[368612639,1751236239289,-500.0,0.00018761,2]
[368612641,1751236239298,-151.94193683,0.00018761,2]
[368612643,1751236239308,-500.0,0.00018761,2]
[368612645,1751236239318,-300.0,0.00018761,2]
[368612647,1751236239328,-400.0,0.00018761,2]
[368612649,1751236239338,-500.0,0.00018761,2]
[368612651,1751236239347,-500.0,0.00018761,2]
[368612653,1751236239357,-1000.0,0.00018761,2]
[368612655,1751236239366,-500.0,0.00018761,2]
[368612657,1751236239376,-1000.0,0.00018761,2]
[368612659,1751236239385,-500.0,0.00018761,2]
[368612661,1751236239394,-1000.0,0.00018761,2]
[368612663,1751236239404,-151.0,0.00018761,2]
[368612665,1751236239413,-1000.0,0.00018761,2]
[368612667,1751236239425,-500.0,0.00018761,2]
[368612669,1751236239434,-300.0,0.00018761,2]
[368612671,1751236239443,-500.0,0.00018761,2]
[368612673,1751236239453,-500.0,0.00018761,2]
[368612675,1751236239461,-1000.0,0.00018761,2]
[368612677,1751236239471,-301.50190115,0.00018761,2]
[368612679,1751236239480,-1000.0,0.00018761,2]
[368612681,1751236239489,-500.0,0.00018761,2]
[368612683,1751236239498,-500.0,0.00018761,2]
[368612685,1751236239507,-1066.23330192,0.00018761,2]
[368612687,1751236239516,-500.0,0.00018761,2]
[368612689,1751236239525,-500.0,0.00018761,2]
[368612691,1751236239535,-1000.0,0.00018761,2]
[368612693,1751236239544,-500.0,0.00018761,2]
[368612695,1751236239554,-500.0,0.00018761,2]
[368612697,1751236239563,-1000.0,0.00018761,2]
[368612699,1751236239576,-500.0,0.00018761,2]
[368612701,1751236239585,-500.0,0.00018761,2]
[368612703,1751236239595,-1000.0,0.00018761,2]
[368612705,1751236239604,-845.3786483,0.00018761,2]
[368612708,1751236239614,-500.0,0.00018761,2]
[368612710,1751236239624,-500.0,0.00018761,2]
[368612711,1751236239633,-450.49058807,0.00018761,2]
[368612713,1751236239643,-500.0,0.00018761,2]
[368612716,1751236239653,-500.0,0.00018761,2]
[368612718,1751236239662,-500.0,0.00018761,2]
[368612720,1751236239672,-500.0,0.00018761,2]
[368612722,1751236239682,-6693.82546047,0.00018761,2]
[368612972,1751236243619,-218.81653953,0.00018761,2]
[368612973,1751236243628,-287.03330835,0.00018761,2]
[368612975,1751236243770,-12.96669165,0.00018761,2]
[368612976,1751236243780,-300.0,0.00018761,2]
[368612977,1751236243790,-300.0,0.00018761,2]
[368612978,1751236243799,-300.0,0.00018761,2]
[368612979,1751236243809,-300.0,0.00018761,2]
[368612980,1751236243821,-300.0,0.00018761,2]
[368612981,1751236243830,-189.151478,0.00018761,2]
[368612982,1751236243840,-151.0,0.00018761,2]
[368612983,1751236243850,-151.0,0.00018761,2]
[368612984,1751236243859,-151.0,0.00018761,2]
[368612985,1751236243869,-343.944572,0.00018761,2]
[368612986,1751236243879,-343.944572,0.00018761,2]
[368612987,1751236243888,-151.0,0.00018761,2]
[368612988,1751236243898,-20.1128673,0.00018761,2]
[368612989,1751236243910,-130.8871327,0.00018761,2]
[368612990,1751236243920,-151.0,0.00018761,2]
[368612991,1751236243929,-151.0,0.00018761,2]
[368612992,1751236243939,-151.0,0.00018761,2]
[368612993,1751236243948,-151.0,0.00018761,2]
[368612994,1751236243958,-151.0,0.00018761,2]
[368612996,1751236243968,-151.0,0.00018761,2]
[368612998,1751236243978,-151.0,0.00018761,2]
[368612999,1751236243988,-151.0,0.00018761,2]
[368613000,1751236243998,-151.0,0.00018761,2]
[368613001,1751236244008,-151.0,0.00018761,2]
[368613002,1751236244017,-151.0,0.00018761,2]
[368613003,1751236244027,-151.0,0.00018761,2]
[368613004,1751236244037,-151.0,0.00018761,2]
[368613005,1751236244046,-324.772973,0.00018761,2]
[368613006,1751236244056,-324.772973,0.00018761,2]
[368613007,1751236244066,-156.56816,0.00018761,2]
[368613008,1751236244079,-151.0,0.00018761,2]
[368613009,1751236244088,-1220.0,0.00018764,2]
[368613010,1751236244098,-355.81657,0.00018764,2]
[368613011,1751236244108,-355.81657,0.00018764,2]
[368613012,1751236244118,-151.0,0.00018764,2]
[368613013,1751236244128,-289.242713,0.00018764,2]
[368613014,1751236244139,-289.242713,0.00018764,2]
[368613016,1751236244151,-151.0,0.00018764,2]
[368613017,1751236244161,-343.944572,0.00018764,2]
[368613019,1751236244171,-343.944572,0.00018764,2]
[368613021,1751236244181,-324.772973,0.00018764,2]
[368613023,1751236244193,-324.772973,0.00018764,2]
[368613025,1751236244203,-168.0,0.00018766,2]
[368613026,1751236244213,-6.87731428,0.00018767,2]
[368613027,1751236244226,-161.12268572,0.00018767,2]
[368613028,1751236244235,-151.0,0.00018789,2]
[368613029,1751236244244,-151.0,0.00018789,2]
[368613030,1751236244254,-151.0,0.00018789,2]
[368613031,1751236244263,-51.7518733,0.00018789,2]
[368613033,1751236246088,-99.2481267,0.00018789,2]
[368613034,1751236246097,-196.816046,0.00018789,2]
[368613035,1751236246107,-151.0,0.00018789,2]
[368613036,1751236246117,-151.0,0.00018789,2]
[368613037,1751236246126,-151.0,0.00018789,2]
[368613038,1751236246136,-151.0,0.00018789,2]
[368613039,1751236246150,-148.31554339,0.00018794,2]
[368613040,1751236246161,-75.67490821,0.00018794,2]
[368613041,1751236246171,-151.0,0.00018829,2]
[368613042,1751236246183,-151.0,0.00018829,2]
[368613043,1751236246193,-69.84192784,0.00018829,2]
[368613044,1751236246204,-702.97500386,0.00018829,2]
[368613045,1751236246218,-417.74591911,0.00018829,2]
[368613046,1751236246230,-1150.24,0.00018829,2]
[368613047,1751236246274,-2048.20831293,0.00018829,2]
[368613048,1751236246336,-532.84310986,0.00018829,2]
[368613126,1751236247329,-263.1457264,0.00018829,2]
[368613127,1751236247339,-150.0,0.00018832,2]
[368613128,1751236247350,-150.0,0.00018846,2]
[368613129,1751236247360,-500.0,0.00018894,2]
[368613130,1751236247370,-500.0,0.00018894,2]
[368613131,1751236247381,-502.0,0.00018894,2]
[368613132,1751236247391,-150.0,0.00018894,2]
[368613133,1751236247401,-183.4203387,0.00018894,2]
[368613134,1751236247412,-150.0,0.00018894,2]
[368613135,1751236247422,-155.84136998,0.00018894,2]
[368613136,1751236247432,-186.06293048,0.00018894,2]
[368613137,1751236247444,-173.12966689,0.00018894,2]
[368613138,1751236247454,-150.0,0.00018894,2]
[368613139,1751236247464,-500.0,0.00018894,2]
[368613140,1751236247474,-295.8253667,0.00018894,2]
[368613141,1751236247484,-528.0,0.00018894,2]
[368613142,1751236247494,-150.0,0.00018894,2]
[368613143,1751236247505,-221.548221,0.00018894,2]
[368613144,1751236247515,-271.052149,0.00018894,2]
[368613145,1751236247525,-355.81657,0.00018901,2]
[368613146,1751236247534,-210.9590285,0.00018901,2]
[368613147,1751236247570,-144.8575415,0.00018901,2]
[368613148,1751236247584,-151.0,0.00018901,2]
[368613149,1751236247593,-289.242713,0.00018901,2]
[368613150,1751236247602,-289.242713,0.00018901,2]
[368613151,1751236247612,-151.0,0.00018901,2]
[368613152,1751236247621,-1452.95703249,0.00018925,2]
[368613153,1751236247632,-1052.8471886,0.00018925,2]
[368613154,1751236247642,-1685.04093754,0.00018925,2]
[368613155,1751236247652,-150.0,0.00018943,2]
[368613156,1751236247661,-151.0,0.00018958,2]
[368613157,1751236247671,-151.0,0.00018958,2]
[368613158,1751236247680,-151.0,0.00018958,2]
[368613159,1751236247688,-280.313107,0.00018958,2]
[368613160,1751236247697,-151.0,0.00018958,2]
[368613161,1751236247706,-343.944572,0.0001896,2]
[368613162,1751236247716,-343.944572,0.0001896,2]
[368613163,1751236247725,-324.772973,0.0001896,2]
[368613164,1751236247734,-324.772973,0.0001896,2]
[368613165,1751236247743,-1992.84515757,0.00018995,2]
[368613166,1751236247752,-447.259148,0.00019001,2]
[368613167,1751236247762,-447.259148,0.00019001,2]
[368613168,1751236247771,-151.0,0.00019001,2]
[368613169,1751236247780,-355.81657,0.00019001,2]
[368613170,1751236247790,-355.816566,0.00019001,2]
[368613171,1751236247799,-289.242713,0.00019001,2]
[368613172,1751236247808,-289.242716,0.00019001,2]
[368613173,1751236247817,-151.0,0.00019001,2]
[368613174,1751236247831,-218.972722,0.00019001,2]
[368613175,1751236247839,-151.0,0.00019001,2]
[368613176,1751236247849,-151.0,0.00019001,2]
[368613177,1751236247858,-151.0,0.00019001,2]
[368613178,1751236247867,-151.0,0.00019001,2]
[368613179,1751236247876,-151.0,0.00019001,2]
[368613180,1751236247886,-151.0,0.00019001,2]
[368613181,1751236247896,-300.0,0.00019003,2]
[368613182,1751236247905,-102.63066489,0.00019004,2]
[368613183,1751236247942,-241.31390711,0.00019004,2]
[368613184,1751236247951,-343.944572,0.00019004,2]
[368613185,1751236247960,-343.944572,0.00019004,2]
[368613186,1751236247970,-343.944572,0.00019004,2]
[368613187,1751236247979,-151.0,0.00019004,2]
[368613188,1751236247988,-151.0,0.00019004,2]
[368613189,1751236247997,-151.0,0.00019004,2]
[368613190,1751236248007,-151.0,0.00019004,2]
[368613191,1751236248016,-151.0,0.00019004,2]
[368613192,1751236248026,-179.621972,0.00019004,2]
[368613193,1751236248036,-151.0,0.00019004,2]
[368613194,1751236248045,-151.0,0.00019004,2]
[368613195,1751236248055,-151.0,0.00019004,2]
[368613196,1751236248064,-151.0,0.00019004,2]
[368613197,1751236248078,-151.0,0.00019004,2]
[368613198,1751236248088,-151.0,0.00019004,2]
[368613199,1751236248098,-279.32425447,0.00019004,2]
[368613200,1751236248111,-45.44871853,0.00019004,2]
[368613201,1751236248122,-324.772973,0.00019004,2]
[368613202,1751236248132,-324.772973,0.00019004,2]
[368613203,1751236248144,-324.772973,0.00019004,2]
[368613204,1751236248154,-151.0,0.00019004,2]
[368613205,1751236248163,-151.0,0.00019004,2]
[368613206,1751236248174,-1596.44167822,0.00019029,2]
[368613207,1751236248184,-151.0,0.00019032,2]
[368613208,1751236248195,-151.0,0.00019032,2]
[368613209,1751236248205,-500.0,0.00019033,2]
[368613210,1751236248218,-500.0,0.00019033,2]
[368613211,1751236248229,-500.74021543,0.00019033,2]
[368613212,1751236248239,-500.0,0.00019033,2]
[368613213,1751236248249,-159.7626271,0.00019033,2]
[368613214,1751236248258,-500.0,0.00019033,2]
[368613215,1751236248268,-367.56458119,0.00019033,2]
[368613216,1751236248277,-500.0,0.00019033,2]
[368613217,1751236248287,-500.0,0.00019033,2]
[368613218,1751236248296,-151.0,0.00019035,2]
[368613219,1751236248306,-289.650574,0.00019035,2]
[368613220,1751236248316,-151.0,0.00019035,2]
[368613221,1751236248331,-269.825,0.00019095,2]
[368613222,1751236248341,-151.0,0.00019096,2]
[368613223,1751236248351,-151.0,0.00019096,2]
[368613224,1751236248361,-519.543196,0.00019096,2]
[368613225,1751236248371,-519.543196,0.00019096,2]
[368613226,1751236248380,-151.0,0.00019096,2]
[368613227,1751236248390,-151.0,0.00019096,2]
[368613228,1751236248400,-447.259148,0.00019096,2]
[368613229,1751236248409,-447.259148,0.00019096,2]
[368613230,1751236248418,-151.0,0.00019096,2]
[368613231,1751236248428,-343.944572,0.00019096,2]
[368613232,1751236248438,-343.944572,0.00019096,2]
[368613233,1751236248447,-324.772973,0.00019096,2]
[368613234,1751236248456,-324.772973,0.00019096,2]
[368613235,1751236248466,-151.0,0.00019103,2]
[368613236,1751236248475,-151.0,0.00019103,2]
[368613237,1751236248484,-151.0,0.00019103,2]
[368613238,1751236248493,-519.543196,0.00019103,2]
[368613239,1751236248502,-519.543196,0.00019103,2]
[368613240,1751236248512,-151.0,0.00019103,2]
[368613241,1751236248521,-153.82242,0.00019103,2]
[368613242,1751236248530,-447.259148,0.00019103,2]
[368613243,1751236248539,-447.259148,0.00019103,2]
[368613244,1751236248548,-151.0,0.00019103,2]
[368613245,1751236248558,-151.0,0.00019103,2]
[368613246,1751236248567,-151.0,0.00019103,2]
[368613247,1751236248582,-151.0,0.00019103,2]
[368613248,1751236248591,-287.93148,0.00019103,2]
[368613249,1751236248601,-151.0,0.00019103,2]
[368613250,1751236248611,-151.0,0.00019103,2]
[368613251,1751236248619,-151.0,0.00019109,2]
[368613252,1751236248629,-155.106899,0.00019109,2]
[368613253,1751236248639,-519.543196,0.00019109,2]
[368613254,1751236248649,-519.543196,0.00019109,2]
[368613255,1751236248659,-166.52,0.00019111,2]
[368613256,1751236248670,-4190.84515863,0.00019118,2]
[368613257,1751236248679,-153.015486,0.0001912,2]
[368613258,1751236248689,-151.0,0.00019132,2]
[368613259,1751236248698,-151.0,0.00019132,2]
[368613260,1751236248708,-151.0,0.00019132,2]
[368613261,1751236248717,-519.543196,0.00019132,2]
[368613262,1751236248727,-519.543196,0.00019132,2]
[368613263,1751236248736,-519.543196,0.00019132,2]
[368613264,1751236248746,-519.543196,0.00019132,2]
[368613265,1751236248755,-447.259148,0.00019132,2]
[368613266,1751236248765,-447.259148,0.00019132,2]
[368613267,1751236248775,-447.259148,0.00019132,2]
[368613268,1751236248785,-447.259148,0.00019132,2]
[368613269,1751236248794,-447.259148,0.00019132,2]
[368613270,1751236248804,-447.259148,0.00019132,2]
[368613271,1751236248814,-343.944572,0.00019132,2]
[368613272,1751236248826,-343.944572,0.00019132,2]
[368613273,1751236248836,-151.0,0.00019132,2]
[368613274,1751236248846,-324.772973,0.00019132,2]
[368613275,1751236248856,-324.772973,0.00019132,2]
[368613276,1751236248865,-150.0,0.00019145,2]
[368613277,1751236248876,-3408.53555,0.0001916,2]
[368613278,1751236248885,-1888.61905662,0.00019167,2]
[368613279,1751236248895,-500.0,0.00019168,2]
[368613280,1751236248905,-500.0,0.00019168,2]
[368613281,1751236248914,-502.0,0.00019168,2]
[368613282,1751236248923,-150.0,0.00019168,2]
[368613283,1751236248933,-253.38515235,0.00019168,2]
[368613284,1751236248942,-257.83039242,0.00019168,2]
[368613285,1751236248951,-500.0,0.00019168,2]
[368613286,1751236248961,-528.0,0.00019168,2]
[368613287,1751236248972,-150.0,0.00019168,2]
[368613288,1751236248981,-174.34,0.00019178,2]
[368613289,1751236248991,-151.0,0.0001918,2]
[368613290,1751236249001,-151.0,0.0001918,2]
[368613291,1751236249011,-150.0,0.0001923,2]
[368613292,1751236249020,-150.0,0.00019242,2]
[368613293,1751236249029,-1000.0,0.00019262,2]
[368613294,1751236249039,-150.0,0.0001927,2]
[368613295,1751236249048,-519.543196,0.00019275,2]
[368613296,1751236249058,-519.543196,0.00019275,2]
[368613297,1751236249068,-447.259148,0.00019275,2]
[368613298,1751236249081,-447.259148,0.00019275,2]
[368613299,1751236249091,-151.0,0.00019275,2]
[368613300,1751236249100,-151.0,0.00019275,2]
[368613301,1751236249110,-165.54860068,0.00019277,2]
[368613302,1751236249119,-151.0,0.000193,2]
[368613303,1751236249128,-500.0,0.000193,2]
[368613304,1751236249138,-510.11779806,0.000193,2]
[368613305,1751236249150,-500.0,0.000193,2]
[368613306,1751236249159,-159.7626271,0.000193,2]
[368613307,1751236249169,-159.76316521,0.000193,2]
[368613308,1751236249178,-4190.84515863,0.00019311,2]
[368613309,1751236249188,-1992.84515752,0.00019339,2]
[368613310,1751236249197,-519.543196,0.00019377,2]
[368613311,1751236249207,-519.543196,0.00019377,2]
[368613312,1751236249216,-447.259148,0.00019377,2]
[368613313,1751236249225,-447.259148,0.00019377,2]
[368613314,1751236249236,-151.0,0.00019391,2]
[368613315,1751236249245,-151.0,0.00019391,2]
[368613316,1751236249254,-150.0,0.00019408,2]
[368613317,1751236249263,-150.0,0.00019409,2]
[368613318,1751236249272,-500.0,0.00019442,2]
[368613319,1751236249281,-500.0,0.00019442,2]
[368613320,1751236249290,-502.0,0.00019442,2]
[368613321,1751236249300,-150.0,0.00019442,2]
[368613322,1751236249310,-500.0,0.00019442,2]
[368613323,1751236249319,-528.0,0.00019442,2]
[368613324,1751236249334,-227.62092147,0.00019442,2]
[368613325,1751236249343,-166.95,0.00019442,2]
[368613326,1751236249352,-151.0,0.00019454,2]
[368613327,1751236249362,-151.0,0.00019454,2]
[368613328,1751236249371,-168.11,0.00019458,2]
[368613329,1751236249381,-300.0,0.00019461,2]
[368613330,1751236249391,-152.378292,0.00019462,2]
[368613331,1751236249402,-151.0,0.00019462,2]
[368613332,1751236249413,-519.543196,0.00019462,2]
[368613333,1751236249423,-519.543196,0.00019462,2]
[368613334,1751236249434,-519.543196,0.00019462,2]
[368613335,1751236249444,-519.543196,0.00019462,2]
[368613336,1751236249455,-447.259148,0.00019462,2]
[368613337,1751236249465,-447.25914,0.00019462,2]
[368613338,1751236249474,-343.944572,0.00019462,2]
[368613339,1751236249484,-343.944572,0.00019462,2]
[368613340,1751236249494,-151.0,0.00019462,2]
[368613341,1751236249504,-151.0,0.00019462,2]
[368613342,1751236249514,-324.772973,0.00019462,2]
[368613343,1751236249524,-324.772973,0.00019462,2]
[368613344,1751236249534,-20065.29566767,0.00019462,2]
[368613345,1751236249544,-1596.44167822,0.00019466,2]
[368613346,1751236249553,-150.0,0.00019477,2]
[368613347,1751236249562,-150.0,0.00019487,2]
[368613348,1751236249576,-4190.84515863,0.00019504,2]
[368613349,1751236249586,-526.16059122,0.00019556,2]
[368613350,1751236249595,-1000.0,0.00019581,2]
[368613351,1751236249605,-1007.62309189,0.00019581,2]
[368613352,1751236249615,-500.0,0.00019581,2]
[368613353,1751236249624,-1000.0,0.00019581,2]
[368613354,1751236249634,-1000.0,0.00019581,2]
[368613355,1751236249644,-343.944572,0.00019583,2]
[368613356,1751236249654,-343.944571,0.00019583,2]
[368613357,1751236249665,-324.772973,0.00019583,2]
[368613358,1751236249676,-324.772967,0.00019583,2]
[368613359,1751236249685,-337.56,0.0001959,2]
[368613360,1751236249695,-150.0,0.00019603,2]
[368613361,1751236249705,-500.0,0.00019616,2]
[368613362,1751236249714,-519.543196,0.00019627,2]
[368613363,1751236249724,-519.543186,0.00019627,2]
[368613364,1751236249734,-348.0,0.00019632,2]
[368613365,1751236249743,-150.0,0.00019648,2]
[368613366,1751236249752,-150.0,0.00019674,2]
[368613367,1751236249761,-1992.84515752,0.00019683,2]
[368613368,1751236249771,-4190.84515863,0.00019696,2]
[368613369,1751236249780,-1000.0,0.000197,2]
[368613370,1751236249790,-154.180824,0.00019712,2]
[368613371,1751236249799,-150.0,0.00019715,2]
[368613372,1751236249809,-500.0,0.00019716,2]
[368613373,1751236249818,-500.0,0.00019716,2]
[368613374,1751236249829,-502.0,0.00019716,2]
[368613375,1751236249839,-200.0,0.00019716,2]
[368613376,1751236249848,-500.0,0.00019716,2]
[368613377,1751236249857,-528.0,0.00019716,2]
[368613378,1751236249867,-150.0,0.00019734,2]